{"text_format":"2","workbook":"xlsx","n_sheets":1,"sheets":["Sheet1"],"not_rendered":{"charts":0,"images":0,"macros":0,"external_links":0,"defined_names":2,"comments":0,"pivot_tables":0},"unopened":[],"bounds":{"document_bytes":16777216,"sheet_cells":100000,"run_cost":"one","rows_first":2000,"rows_last":500,"rows_between":2000,"halvings":0,"cell_chars":16384,"cell_head_chars":4096},"cells_cut":0,"cells_raw":0,"read":"whole","date_system":"1900"}

{"sheet":"Sheet1","index":0,"n_rows":287,"n_cols":16,"rows_kept":287,"cut":false,"hidden":false,"merged":[[0,0,1,0],[0,1,1,1],[0,3,1,3],[0,4,1,4],[0,5,1,5],[251,15,252,15],[0,14,1,14],[0,2,1,2],[0,9,1,9],[0,11,0,13],[0,6,1,6],[0,8,1,8],[0,7,1,7],[0,10,1,10]]}
["DIPARTIMENTO EROGANTE","CORSO DI STUDIO","TIPOLOGIA DEL CORSO","CURRICULUM","ANNO","SEMESTRE","MODULO DI INSEGNAMENTO (UD)","UD_SSD","PARTIZIONE","TAF","UD_CFU","TIP. DIDATTICA (ORE)",null,null,"TOTALE ORE DOCENTE"]
[{"$nulls":11},"LEZ","ESE\nTIR","LAB",null,"note"]
["DIPARTIMENTO DI CHIMICA","SCIENZA E TECNOLOGIE DEI MATERIALI (D.M.270/04)","MAG","Scientifico",1,1,"CRESCITA E CARATTERIZZAZIONE DI DISPOSITIVI A SEMICONDUTTORE","FIS/01",null,"B",6,32,0,30,{"$f":"SUM(L3:N3)","v":62}]
["DIPARTIMENTO DI CHIMICA","SCIENZA E TECNOLOGIE DEI MATERIALI (D.M.270/04)","MAG","Scientifico",1,1,"Ingegneria dei Materiali ","ING-IND/22",null,"C",8,64,0,0,64]
["DIPARTIMENTO DI CHIMICA","SCIENZA E TECNOLOGIE DEI MATERIALI (D.M.270/04)","MAG","Scientifico",1,"2","Fisica dello stato solido","FIS/03",null,"C",6,32,15,15,{"$f":"SUM(L5:N5)","v":62}]
["DIPARTIMENTO DI CHIMICA","SCIENZA E TECNOLOGIE DEI MATERIALI (D.M.270/04)","MAG","Scientifico - BIOREF",2,1,"WASTE TREATMENT. BIOGAS PRODUCTION","CHIM/04",null,"B",2,16,null,null,{"$f":"SUM(L6:N6)","v":16}]
["DIPARTIMENTO DI CHIMICA","SCIENZA E TECNOLOGIE DEI MATERIALI (D.M.270/04)","MAG","Scientifico - BIOREF",2,1,"ECONOMIC ASSESSMENT OF AQUATIC BIOMASS","CHIM/04",null,"D",2,16,null,null,16]
["DIPARTIMENTO DI CHIMICA","SCIENZA E TECNOLOGIE DEI MATERIALI (D.M.270/04)","MAG","Scientifico - BIOREF",2,1,"ENGLISH","L-LIN/12",null,"E + F","3 + 2",40,null,null,40]
["DIPARTIMENTO DI CHIMICA","SCIENZE CHIMICHE","MAG",null,1,1,"Complementi di Inglese","L-LIN/12",null,"E",2,0,30,0,{"$f":"SUM(L9:N9)","v":30}]
["DIPARTIMENTO DI CHIMICA","SCIENZE CHIMICHE","MAG",null,2,1,"Gestione dei rifiuti e siti contaminati","CHIM/03",null,"C",5,40,0,0,{"$f":"SUM(L10:N10)","v":40}]
["DIPARTIMENTO DI CHIMICA","SCIENZE CHIMICHE","MAG",null,2,2,"Recupero risorse da acque reflue","CHIM/03",null,"D",5,40,0,0,{"$f":"SUM(L11:N11)","v":40}]
["DIPARTIMENTO DI CHIMICA","SCIENZE AMBIENTALI ","TRI",null,1,1,"Informatica","INF/01",null,"F",4,27,15,0,{"$f":"SUM(L12:N12)","v":42}]
["DIPARTIMENTO DI CHIMICA","SCIENZE AMBIENTALI ","TRI",null,1,2,"Laboratorio di Abilità Linguistiche (Inglese)","L-LIN/12",null,"E",4,18,30,0,48]
["DIPARTIMENTO DI CHIMICA","CHIMICA","TRI",null,1,1,"Lingua Inglese","L-LIN/12",null,"C",3,0,45,0,{"$f":"SUM(L14:N14)","v":45}]
["DIPARTIMENTO DI CHIMICA","CHIMICA INDUSTRIALE","MAG",null,1,1,"CHIMICA INDUSTRIALE E LABORATORIO MOD. A","CHIM/04",null,"B",8,{"$f":"6*8","v":48},15,15,{"$f":"SUM(L15:N15)","v":78}]
["DIPARTIMENTO DI CHIMICA","CHIMICA INDUSTRIALE","MAG",null,1,1,"CHIMICA INDUSTRIALE E LABORATORIO MOD. B","CHIM/04",null,"B",4,24,15,0,39]
["DIPARTIMENTO DI CHIMICA","CHIMICA INDUSTRIALE","MAG",null,1,"1/2","METALLURGIA","ING-IND/21",null,"C",6,48,0,0,48]
["DIPARTIMENTO DI MATEMATICA","Matematica","TRI",null,1,2,"LINGUA INGLESE I","L-LIN/12",null,"E",3,24,0,0,{"$f":"SUM(L18:N18)","v":24}]
["DIPARTIMENTO DI MATEMATICA","Matematica","TRI",null,2,2,"Fisica Matematica 1","MAT/07",null,"A",8,48,30,0,{"$f":"SUM(L19:N19)","v":78}]
["DIPARTIMENTO DI MATEMATICA","Matematica","TRI",null,3,2,"Fisica Matematica 2","MAT/07",null,"C",7,40,30,0,{"$f":"SUM(L20:N20)","v":70}]
["DIPARTIMENTO DI MATEMATICA","Matematica","MAG",null,1,2,"LINGUA INGLESE II","L-LIN/12",null,"F",3,24,0,0,{"$f":"SUM(L21:N21)","v":24}]
["DIPARTIMENTO DI MATEMATICA","Matematica","MAG","matematica applicata e supporto alla finanza",2,2,"Metodi Analitici in Finanza","MAT/05",null,"B",7,52,8,0,{"$f":"SUM(L22:N22)","v":60}]
["DIPARTIMENTO DI MATEMATICA","Matematica","MAG",null,null,2,"Istituzioni di Economia Matematica","SECS-P/05",null,"D",7,52,8,0,{"$f":"SUM(L23:N23)","v":60}]
["DIPARTIMENTO DI MATEMATICA","Matematica","MAG",null,null,1,"Istituzioni di Fisica Matematica","MAT/07",null,"D",7,52,8,0,{"$f":"SUM(L24:N24)","v":60}]
["DIPARTIMENTO DI INFORMATICA","COMPUTER SCIENCE (D.M. 270/04)","MAG","Comune",2,1,"CLOUD COMPUTING","INF/01",null,"D",6,24,15,50,39]
["DIPARTIMENTO DI INFORMATICA","COMPUTER SCIENCE (D.M. 270/04)","MAG","Comune",2,1,"CYBER-SECURITY CAPSTONE PROJECT","ING-INF/05",null,"D",6,24,15,50,39]
["DIPARTIMENTO DI INFORMATICA","COMPUTER SCIENCE (D.M. 270/04)","MAG","Comune",2,1,"SOCIAL ROBOTICS","INF/01",null,"D",6,32,30,0,62]
["DIPARTIMENTO DI INFORMATICA","COMPUTER SCIENCE (D.M. 270/04)","MAG","Comune",2,2,"ADVANCED SCIENTIFIC ENGLISH","L-LIN/12",null,"F",3,24,0,0,24]
["DIPARTIMENTO DI INFORMATICA","COMPUTER SCIENCE (D.M. 270/04)","MAG","CURR. Security Engineering",1,2,"IOT SECURITY","INF/01",null,"B",6,32,30,0,62]
["DIPARTIMENTO DI INFORMATICA","DATA SCIENCE (D.M.270/04) - LM 91","MAG","Comune",2,1,"ETICA NELL'INNOVAZIONE TECNOLOGICA","M-FIL/03",null,"D",6,48,0,0,48]
["DIPARTIMENTO DI INFORMATICA","DATA SCIENCE (D.M.270/04) - LM 91","MAG","Comune",2,1,"LOGICA E INTELLIGENZA ARTIFICIALE","INF/01",null,"D",6,48,0,0,48]
["DIPARTIMENTO DI INFORMATICA","DATA SCIENCE (D.M.270/04) - LM DATA","MAG","Comune",1,1,"INGLESE PROFESSIONALE PER LA DATA SCIENCE","L-LIN/12",null,"F",4,32,0,0,32]
["DIPARTIMENTO DI INFORMATICA","DATA SCIENCE (D.M.270/04) - LM DATA","MAG","Comune",1,1,"TRATTAMENTO DEI DATI SENSIBILI ","IUS/01",null,"B",6,48,0,0,48]
["DIPARTIMENTO DI INFORMATICA","DATA SCIENCE (D.M.270/04) - LM DATA","MAG","Comune",1,2,"MODELLIZZAZIONE STATISTICA","SECS-S01",null,"B",6,32,30,0,62]
["DIPARTIMENTO DI INFORMATICA","DATA SCIENCE (D.M.270/04) -LM 91","MAG","Comune",2,1,"MODELLI ECONOMICI PER L'INNOVAZIONE GUIDATA DEI DATI","SECS-P/08",null,"B",6,48,0,0,48]
["DIPARTIMENTO DI INFORMATICA","INFORMATICA (D.M.270/04)","TRI","COMUNE",1,2,"LINGUA INGLESE","L-LIN/12","AL","E",6,32,30,0,62]
["DIPARTIMENTO DI INFORMATICA","INFORMATICA (D.M.270/04)","TRI","COMUNE",1,2,"LINGUA INGLESE","L-LIN/12","MZ","E",6,32,30,0,62]
["DIPARTIMENTO DI INFORMATICA","INFORMATICA (D.M.270/04)","TRI","COMUNE",3,2,"SISTEMI E TECNICHE DI GESTIONE DOCUMENTALE","ING-INF/05",null,"D",6,32,30,0,62]
["DIPARTIMENTO DI INFORMATICA","INFORMATICA (D.M.270/04)","TRI","COMUNE",3,2,"SISTEMI E TECNICHE DI GESTIONE DOCUMENTALE+ PROGETTO","ING-INF/05",null,"D",9,32,30,75,62,"MUTUATO DAL PRECEDENTE"]
["DIPARTIMENTO DI INFORMATICA","INFORMATICA E COMUNICAZIONE DIGITALE - SEDE DI TARANTO (D.M.270/04)","TRI","Comune",1,1,"PROGRAMMAZIONE","INF/01",null,"A",12,72,45,0,117]
["DIPARTIMENTO DI INFORMATICA","INFORMATICA E COMUNICAZIONE DIGITALE - SEDE DI TARANTO (D.M.270/04)","TRI","Comune",3,1,"RETI DI CALCOLATORI E COMUNICAZIONE DIGITALE","INF/01",null,"B",6,32,30,0,62]
["DIPARTIMENTO DI INFORMATICA","INFORMATICA E COMUNICAZIONE DIGITALE - SEDE DI TARANTO (D.M.270/04)","TRI","Comune",3,2,"DIRITTO DELL'INFORMATICA","IUS/01",null,"D",6,48,0,0,48]
["DIPARTIMENTO DI INFORMATICA","INFORMATICA E COMUNICAZIONE DIGITALE - SEDE DI TARANTO (D.M.270/04)","TRI","Comune",1,2,"LINGUA INGLESE","L-LIN/12",null,"E",6,32,30,0,62]
["DIPARTIMENTO DI INFORMATICA","INFORMATICA E COMUNICAZIONE DIGITALE - SEDE DI TARANTO (D.M.270/04)","TRI","Comune",3,2,"METODI PER IL RITROVAMENTO E IL FILTRAGGIO DELL'INFORMAZIONE","INF/01",null,"D",6,32,30,0,62]
["DIPARTIMENTO DI INFORMATICA","INFORMATICA E COMUNICAZIONE DIGITALE - SEDE DI TARANTO (D.M.270/04)","TRI","Comune",3,2,"SISTEMI INFORMATIVI","INF/01",null,"D",6,32,30,0,62]
["DIPARTIMENTO DI INFORMATICA","INFORMATICA E COMUNICAZIONE DIGITALE - SEDE DI TARANTO (D.M.270/04)","TRI","Comune",3,2,"SISTEMI INFORMATIVI+PROGETTO","INF/01",null,"D",6,32,30,75,62,"MUTUATO DAL PRECEDENTE"]
["DIPARTIMENTO DI INFORMATICA","INFORMATICA E TECNOLOGIE PER LA PRODUZIONE DEL SOFTWARE (D.M.270/04)","TRI","Comune",2,2,"ECONOMIA E GESTIONE D'IMPRESA","SECS-P/08","AL","C",6,32,30,0,{"$f":"SUM(L47:N47)","v":62}]
["DIPARTIMENTO DI INFORMATICA","INFORMATICA E TECNOLOGIE PER LA PRODUZIONE DEL SOFTWARE (D.M.270/04)","TRI","Comune",2,2,"ECONOMIA E GESTIONE D'IMPRESA","SECS-P/08","MZ","C",6,32,30,0,{"$f":"SUM(L48:N48)","v":62}]
["DIPARTIMENTO DI INFORMATICA","INFORMATICA E TECNOLOGIE PER LA PRODUZIONE DEL SOFTWARE (D.M.270/04)","TRI","Comune",3,2,"EVOLUZIONE DEL SOFTWARE","ING-INF/05",null,"D",6,32,30,0,{"$f":"SUM(L49:N49)","v":62}]
["DIPARTIMENTO DI INFORMATICA","INFORMATICA E TECNOLOGIE PER LA PRODUZIONE DEL SOFTWARE (D.M.270/04)","TRI","Comune",1,2,"LINGUA INGLESE","L-LIN/12","AL","E",6,32,30,0,{"$f":"SUM(L50:N50)","v":62}]
["DIPARTIMENTO DI INFORMATICA","INFORMATICA E TECNOLOGIE PER LA PRODUZIONE DEL SOFTWARE (D.M.270/04)","TRI","Comune",1,2,"LINGUA INGLESE","L-LIN/12","MZ","E",6,32,30,0,{"$f":"SUM(L51:N51)","v":62}]
["DIPARTIMENTO DI INFORMATICA","SICUREZZA INFORMATICA (D.M. 270/04) - SEDE DI TARANTO","MAG","Comune",1,1,"CRITTOGRAFIA","INF/01",null,"C",6,32,30,0,62]
["DIPARTIMENTO DI INFORMATICA","SICUREZZA INFORMATICA (D.M. 270/04) - SEDE DI TARANTO","MAG","Comune",2,1,"INFORMATICA E DIRITTO","IUS/01",null,"D",6,48,0,0,48]
["DIPARTIMENTO DI INFORMATICA","SICUREZZA INFORMATICA (D.M. 270/04) - SEDE DI TARANTO","MAG","Comune",2,1,"INFORMATICA FORENSE","INF/01 - ING-INF/05",null,"D",6,48,0,0,32]
["DIPARTIMENTO DI INFORMATICA","SICUREZZA INFORMATICA (D.M. 270/04) - SEDE DI TARANTO","MAG","Comune",1,1,"LINGUA INGLESE","L-LIN/12",null,"F",3,24,0,0,24]
["DIPARTIMENTO DI INFORMATICA","SICUREZZA INFORMATICA (D.M. 270/04) - SEDE DI TARANTO","MAG","Comune",2,1,"LOGICA APPLICATA","INF/01",null,"D",6,48,0,0,48]
["DIPARTIMENTO DI INFORMATICA","SICUREZZA INFORMATICA (D.M. 270/04) - SEDE DI TARANTO","MAG","Comune",2,1,"PROGETTAZIONE DI SISTEMI SICURI","INF/01 - ING-INF/05",null,"D",6,32,0,50,32]
["DIPARTIMENTO DI INFORMATICA","SICUREZZA INFORMATICA (D.M. 270/04) - SEDE DI TARANTO","MAG","Comune",2,1,"TEORIA DELL'INFORMAZIONE","INF/01",null,"D",6,32,30,0,62]
["DIPARTIMENTO DI INFORMATICA","SICUREZZA INFORMATICA (D.M. 270/04) - SEDE DI TARANTO","MAG","Comune",1,2,"ANALISI E GESTIONE DEL RISCHIO","SECS-S/01",null,"B",6,48,0,0,48]
["DIPARTIMENTO DI INFORMATICA","SICUREZZA INFORMATICA (D.M. 270/04) - SEDE DI TARANTO","MAG","Comune",1,2,"TRATTAMENTO DEI DATI SENSIBILI (CORSO IN E-LEARNING)","IUS/04",null,"B",9,72,0,0,72,"CORSO IN E-LEARNING"]
["DIPARTIMENTO DI SCIENZE DELLA TERRA E GEOAMBIENTALI","CONSERVAZIONE E RESTAURO DEI BENI CULTURALI","CU5","Comune",5,1,"DISEGNO E RILIEVO","ICAR/17",null,"B",6,48,0,0,{"$f":"SUM(L61:N61)","v":48}]
["DIPARTIMENTO DI SCIENZE DELLA TERRA E GEOAMBIENTALI","CONSERVAZIONE E RESTAURO DEI BENI CULTURALI","CU5","Comune",5,2,"STORIA DELL'ARCHITETTURA","ICAR/18",null,"C",7,56,0,0,{"$f":"SUM(L62:N62)","v":56}]
["DIPARTIMENTO DI SCIENZE DELLA TERRA E GEOAMBIENTALI","CONSERVAZIONE E RESTAURO DEI BENI CULTURALI","CU5","Comune",3,2,"AMBIENTE E BENI CULTURALI - MOD. FISICA TECNICA AMBIENTALE","ING-IND/11",null,"C",6,40,12,null,{"$f":"SUM(L63:N63)","v":52}]
["DIPARTIMENTO DI SCIENZE DELLA TERRA E GEOAMBIENTALI","SCIENZE GEOLOGICHE","TRI","Comune",1,2,"INGLESE","L-LIN/12",null,"F",4,32,0,null,{"$f":"SUM(L64:N64)","v":32}]
["DIPARTIMENTO DI SCIENZE DELLA TERRA E GEOAMBIENTALI","SCIENZE GEOLOGICHE E GEOFISICHE","MAG","Comune",2,1,"LABORATORIO DI FISICA SPERIMENTALE E APPLICATA","FIS/07",null,null,7,24,48,null,{"$f":"SUM(L65:N65)","v":72}]
["DIPARTIMENTO DI SCIENZE DELLA TERRA E GEOAMBIENTALI","CONSERVAZIONE E RESTAURO DEI BENI CULTURALI","CU5","PFP1 Materiali Lapidei e derivati; superfici decorate dell'architettura",1,1," STORIA E TECNICHE DI RESTAURO I – MATERIALI LAPIDEI + TIROCINIO I - MOD. 1","NN",null,"F",9,null,225,null,{"$f":"SUM(L66:N66)","v":225}]
["DIPARTIMENTO DI SCIENZE DELLA TERRA E GEOAMBIENTALI","CONSERVAZIONE E RESTAURO DEI BENI CULTURALI","CU5","PFP1 Materiali Lapidei e derivati; superfici decorate dell'architettura",1,2," STORIA E TECNICHE DI RESTAURO I – MATERIALI LAPIDEI + TIROCINIO I - MOD. TIROCINIO","NN",null,"F",6,null,150,null,{"$f":"SUM(L67:N67)","v":150}]
["DIPARTIMENTO DI SCIENZE DELLA TERRA E GEOAMBIENTALI","CONSERVAZIONE E RESTAURO DEI BENI CULTURALI","CU5","PFP1 Materiali Lapidei e derivati; superfici decorate dell'architettura",2,1," STORIA E TECNICHE DI RESTAURO II – MATERIALI LAPIDEI + TIROCINIO II - MOD. 1","NN",null,"F",12,null,300,null,{"$f":"SUM(L68:N68)","v":300}]
["DIPARTIMENTO DI SCIENZE DELLA TERRA E GEOAMBIENTALI","CONSERVAZIONE E RESTAURO DEI BENI CULTURALI","CU5","PFP1 Materiali Lapidei e derivati; superfici decorate dell'architettura",2,2," STORIA E TECNICHE DI RESTAURO II – MATERIALI LAPIDEI + TIROCINIO II - MOD. TIROCINIO","NN",null,"F",6,null,150,null,{"$f":"SUM(L69:N69)","v":150}]
["DIPARTIMENTO DI SCIENZE DELLA TERRA E GEOAMBIENTALI","CONSERVAZIONE E RESTAURO DEI BENI CULTURALI","CU5","PFP1 Materiali Lapidei e derivati; superfici decorate dell'architettura",3,1," STORIA E TECNICHE DI RESTAURO III – DIPINTI MURALI + TIROCINIO III - MOD. 1","NN",null,"F",12,null,300,null,{"$f":"SUM(L70:N70)","v":300}]
["DIPARTIMENTO DI SCIENZE DELLA TERRA E GEOAMBIENTALI","CONSERVAZIONE E RESTAURO DEI BENI CULTURALI","CU5","PFP1 Materiali Lapidei e derivati; superfici decorate dell'architettura",3,2," STORIA E TECNICHE DI RESTAURO III –  DIPINTI MURALI + TIROCINIO III - MOD. TIROCINIO","NN",null,"F",6,null,150,null,{"$f":"SUM(L71:N71)","v":150}]
["DIPARTIMENTO DI SCIENZE DELLA TERRA E GEOAMBIENTALI","CONSERVAZIONE E RESTAURO DEI BENI CULTURALI","CU5","PFP1 Materiali Lapidei e derivati; superfici decorate dell'architettura",4,1," STORIA E TECNICHE DI RESTAURO IV – DIPINTI MURALI + TIROCINIO IV - MOD. 1","NN",null,"F",12,null,300,null,{"$f":"SUM(L72:N72)","v":300}]
["DIPARTIMENTO DI SCIENZE DELLA TERRA E GEOAMBIENTALI","CONSERVAZIONE E RESTAURO DEI BENI CULTURALI","CU5","PFP1 Materiali Lapidei e derivati; superfici decorate dell'architettura",4,2," STORIA E TECNICHE DI RESTAURO IV –  DIPINTI MURALI + TIROCINIO IV - MOD. TIROCINIO","NN",null,"F",6,null,150,null,{"$f":"SUM(L73:N73)","v":150}]
["DIPARTIMENTO DI SCIENZE DELLA TERRA E GEOAMBIENTALI","CONSERVAZIONE E RESTAURO DEI BENI CULTURALI","CU5","PFP1 Materiali Lapidei e derivati; superfici decorate dell'architettura",5,1," STORIA E TECNICHE DI RESTAURO V – MOSAICI+ TIROCINIO V - MOD. 1","NN",null,"F",12,null,300,null,{"$f":"SUM(L74:N74)","v":300}]
["DIPARTIMENTO DI SCIENZE DELLA TERRA E GEOAMBIENTALI","CONSERVAZIONE E RESTAURO DEI BENI CULTURALI","CU5","PFP1 Materiali Lapidei e derivati; superfici decorate dell'architettura",5,2," STORIA E TECNICHE DI RESTAURO V – MATERIALI LAPIDEI + TIROCINIO V - MOD. TIROCINIO","NN",null,"F",9,null,225,null,{"$f":"SUM(L75:N75)","v":225}]
["DIPARTIMENTO DI SCIENZE DELLA TERRA E GEOAMBIENTALI","CONSERVAZIONE E RESTAURO DEI BENI CULTURALI","CU5","PFP4 Materiali e manufatti ceramici e vitrei; Materiali e manufatti in metallo e leghe",1,1," STORIA E TECNICHE DI RESTAURO I – CERAMICHE + TIROCINIO I - MOD. 1","NN",null,"F",9,null,225,null,{"$f":"SUM(L76:N76)","v":225}]
["DIPARTIMENTO DI SCIENZE DELLA TERRA E GEOAMBIENTALI","CONSERVAZIONE E RESTAURO DEI BENI CULTURALI","CU5","PFP4 Materiali e manufatti ceramici e vitrei; Materiali e manufatti in metallo e leghe",1,2," STORIA E TECNICHE DI RESTAURO I – CERAMICHE + TIROCINIO I - MOD. Tirocinio","NN",null,"F",6,null,150,null,{"$f":"SUM(L77:N77)","v":150}]
["DIPARTIMENTO INTERATENEO DI FISICA","PHYSICS","MAG","Theoretical Physics  AND complex systems",2,1,"STANDARD MODEL","FIS/02",null,"C",6,40,15,0,55]
["DIPARTIMENTO INTERATENEO DI FISICA","PHYSICS","MAG","particle astroparticle physics and advanced technologies",1,2,"COMPUTING TECHNOLOGIES","FIS/01",null,"B",6,40,15,0,55]
["DIPARTIMENTO INTERATENEO DI FISICA","PHYSICS","MAG","particle astroparticle physics and advanced technologies",1,2,"FUNDAMENTAL INTERACTION PHENOMENOLOGY","FIS/01",null,"B",6,40,15,0,55]
["DIPARTIMENTO INTERATENEO DI FISICA","PHYSICS","MAG",null,1,2,"STANDARD MODEL","FIS/02",null,"C",6,40,15,null,55]
["DIPARTIMENTO INTERATENEO DI FISICA","PHYSICS","MAG",null,1,2,"COMPUTING TECHNOLOGIES","FIS/01",null,"C",6,40,15,null,55]
["DIPARTIMENTO INTERATENEO DI FISICA","PHYSICS","MAG",null,1,2,"FUNDAMENTAL INTERACTION PHENOMENOLOGY","FIS/04",null,"B",6,40,15,null,55]
["DIPARTIMENTO INTERATENEO DI FISICA","PHYSICS","MAG","Comune",1,2,"ADVANCED PROGRAMMING IN C++ ","FIS/01",null,"D",3,16,null,15,31]
["DIPARTIMENTO INTERATENEO DI FISICA","PHYSICS","MAG","Comune",1,2,"AI PROGRAMMING IN PHYSICS","FIS/01",null,"D",3,16,null,15,31]
["DIPARTIMENTO INTERATENEO DI FISICA","PHYSICS","MAG","Comune",2,1,"LABORATORY OF PLASMA PHYSICS","FIS/03",null,"D",3,16,null,15,31]
["DIPARTIMENTO INTERATENEO DI FISICA","PHYSICS","MAG","Comune",2,1,"EARTH OBSERVATION AND GIS DATA ANALYSIS","FIS/06",null,"D",3,16,15,null,31]
["DIPARTIMENTO INTERATENEO DI FISICA","PHYSICS","MAG","Comune",2,1,"DEEP LEARNING AND GENERATIVE MODELS","FIS/07",null,"D",3,16,15,null,31]
["DIPARTIMENTO INTERATENEO DI FISICA","PHYSICS","MAG","Comune",2,1,"NUCLEAR FUSION TECHNOLOGIES","FIS/04",null,"D",3,16,15,null,31]
["DIPARTIMENTO INTERATENEO DI FISICA","PHYSICS","MAG","Comune",2,1,"PHYSICS OF SPACE ELECTRIC PROPULSION","FIS/03",null,"D",3,24,null,null,24]
["DIPARTIMENTO INTERATENEO DI FISICA","PHYSICS","MAG",null,1,2,"PROBABILISTIC METHODS OF PHYSICS","MAT/07",null,"C",6,40,15,null,55]
["DIPARTIMENTO INTERATENEO DI FISICA","SCIENZA E TECNOLOGIA DEI MATERIALI","TRI","Comune",1,2,"LINGUA INGLESE","L-LIN/12",null,"E",3,0,45,0,{"$f":"SUM(L92:N92)","v":45}]
["DIPARTIMENTO INTERATENEO DI FISICA","FISICA","TRI","Comune",2,1,"LINGUA INGLESE","L-LIN/12",null,"E-F",6,32,30,0,{"$f":"SUM(L93:N93)","v":62}]
{"$rows_empty":158}
["DIPARTIMENTO DI INFORMATICA","INFORMATICA (D.M.270/04)","TRI","COMUNE",1,1,"MATEMATICA DISCRETA ","MAT/03","AL","A",9,56,30,0,86,"CORSI MUTUATI"]
["DIPARTIMENTO DI INFORMATICA","INFORMATICA (D.M.270/04)","TRI","COMUNE",1,2,"LINGUA INGLESE","L-LIN/12","AL","E",6,32,30,0,62]
["DIPARTIMENTO DI INFORMATICA","INFORMATICA (D.M.270/04)","TRI","COMUNE",1,2,"LINGUA INGLESE","L-LIN/12","MZ","E",6,32,30,0,62]
["DIPARTIMENTO DI INFORMATICA","INFORMATICA (D.M.270/04)","TRI","COMUNE",3,2,"SISTEMI E TECNICHE DI GESTIONE DOCUMENTALE","ING-INF/05",null,"D",6,32,30,0,62]
["DIPARTIMENTO DI INFORMATICA","INFORMATICA (D.M.270/04)","TRI","COMUNE",3,2,"SISTEMI E TECNICHE DI GESTIONE DOCUMENTALE+ PROGETTO","ING-INF/05",null,"D",9,32,30,75,62]
["DIPARTIMENTO DI INFORMATICA","INFORMATICA E TECNOLOGIE PER LA PRODUZIONE DEL SOFTWARE (D.M.270/04)","TRI","Comune",1,2,"LINGUA INGLESE","L-LIN/12","AL","E",6,32,30,0,{"$f":"SUM(L257:N257)","v":62}]
["DIPARTIMENTO DI INFORMATICA","INFORMATICA E TECNOLOGIE PER LA PRODUZIONE DEL SOFTWARE (D.M.270/04)","TRI","Comune",1,2,"LINGUA INGLESE","L-LIN/12","MZ","E",6,32,30,0,{"$f":"SUM(L258:N258)","v":62}]
["DIPARTIMENTO DI INFORMATICA","INFORMATICA E TECNOLOGIE PER LA PRODUZIONE DEL SOFTWARE (D.M.270/04)","TRI","Comune",2,2,"ECONOMIA E GESTIONE D'IMPRESA","SECS-P/08","AL","C",6,32,30,0,{"$f":"SUM(L259:N259)","v":62}]
["DIPARTIMENTO DI INFORMATICA","INFORMATICA E TECNOLOGIE PER LA PRODUZIONE DEL SOFTWARE (D.M.270/04)","TRI","Comune",2,2,"ECONOMIA E GESTIONE D'IMPRESA","SECS-P/08","MZ","C",6,32,30,0,{"$f":"SUM(L260:N260)","v":62}]
["DIPARTIMENTO DI INFORMATICA","INFORMATICA E TECNOLOGIE PER LA PRODUZIONE DEL SOFTWARE (D.M.270/04)","TRI","Comune",3,2,"CYBER SECURITY","ING-INF/05",null,"D",6,32,30,0,{"$f":"SUM(L261:N261)","v":62}]
["DIPARTIMENTO DI INFORMATICA","INFORMATICA E COMUNICAZIONE DIGITALE - SEDE DI TARANTO (D.M.270/04)","TRI","Comune",1,2,"LINGUA INGLESE","L-LIN/12",null,"E",6,32,30,0,62]
["DIPARTIMENTO DI INFORMATICA","INFORMATICA E COMUNICAZIONE DIGITALE - SEDE DI TARANTO (D.M.270/04)","TRI","Comune",2,1,"STATISTICA MATEMATICA","MAT/06",null,"C",6,32,30,0,62]
["DIPARTIMENTO DI INFORMATICA","INFORMATICA E COMUNICAZIONE DIGITALE - SEDE DI TARANTO (D.M.270/04)","TRI","Comune",3,1,"RETI DI CALCOLATORI E COMUNICAZIONE DIGITALE","INF/01",null,"B",6,32,30,0,62]
["DIPARTIMENTO DI INFORMATICA","INFORMATICA E COMUNICAZIONE DIGITALE - SEDE DI TARANTO (D.M.270/04)","TRI","Comune",3,2,"DIRITTO DELL'INFORMATICA","IUS/01",null,"D",6,48,0,0,48]
["DIPARTIMENTO DI INFORMATICA","INFORMATICA E COMUNICAZIONE DIGITALE - SEDE DI TARANTO (D.M.270/04)","TRI","Comune",3,2,"METODI PER IL RITROVAMENTO E IL FILTRAGGIO DELL'INFORMAZIONE","INF/01",null,"D",6,32,30,0,62]
["DIPARTIMENTO DI INFORMATICA","COMPUTER SCIENCE (D.M. 270/04)","MAG","Comune",2,2,"ADVANCED SCIENTIFIC ENGLISH","L-LIN/12",null,"F",3,24,0,0,24,"CORSO IN E-LEARNING"]
["DIPARTIMENTO DI INFORMATICA","COMPUTER SCIENCE (D.M. 270/04)","MAG","Comune",2,1,"CYBER-SECURITY CAPSTONE PROJECT","ING-INF/05",null,"D",6,24,15,50,39]
["DIPARTIMENTO DI INFORMATICA","COMPUTER SCIENCE (D.M. 270/04)","MAG","Comune",2,1,"CLOUD COMPUTING","INF/01",null,"D",6,24,15,50,39]
["DIPARTIMENTO DI INFORMATICA","SICUREZZA INFORMATICA (D.M. 270/04) - SEDE DI TARANTO","MAG","Comune",1,1,"ORGANIZZAZIONE AZIENDALE (CORSO IN E-LEARNING)","SECS-P/10",null,"B",6,48,0,0,48,"CORSO IN E-LEARNING"]
["DIPARTIMENTO DI INFORMATICA","SICUREZZA INFORMATICA (D.M. 270/04) - SEDE DI TARANTO","MAG","Comune",1,1,"CRITTOGRAFIA","INF/01",null,"C",6,32,30,0,62]
["DIPARTIMENTO DI INFORMATICA","SICUREZZA INFORMATICA (D.M. 270/04) - SEDE DI TARANTO","MAG","Comune",1,1,"LINGUA INGLESE","L-LIN/12",null,"F",3,24,0,0,24]
["DIPARTIMENTO DI INFORMATICA","SICUREZZA INFORMATICA (D.M. 270/04) - SEDE DI TARANTO","MAG","Comune",1,2,"TRATTAMENTO DEI DATI SENSIBILI (CORSO IN E-LEARNING)","IUS/04",null,"B",9,72,0,0,72]
["DIPARTIMENTO DI INFORMATICA","SICUREZZA INFORMATICA (D.M. 270/04) - SEDE DI TARANTO","MAG","Comune",1,2,"SICUREZZA NELLE RETI E NEI SISTEMI DISTRIBUITI","INF/01",null,"B",6,32,15,25,47]
["DIPARTIMENTO DI INFORMATICA","SICUREZZA INFORMATICA (D.M. 270/04) - SEDE DI TARANTO","MAG","Comune",1,2,"ANALISI E GESTIONE DEL RISCHIO","SECS-S/01",null,"B",6,48,0,0,48]
["DIPARTIMENTO DI INFORMATICA","SICUREZZA INFORMATICA (D.M. 270/04) - SEDE DI TARANTO","MAG","Comune",2,1,"PROGETTAZIONE DI SISTEMI SICURI","INF/01 - ING-INF/05",null,"D",6,32,0,50,32]
["DIPARTIMENTO DI INFORMATICA","SICUREZZA INFORMATICA (D.M. 270/04) - SEDE DI TARANTO","MAG","Comune",2,1,"INFORMATICA FORENSE","INF/01 - ING-INF/05",null,"D",6,48,0,0,32]
["DIPARTIMENTO DI INFORMATICA","SICUREZZA INFORMATICA (D.M. 270/04) - SEDE DI TARANTO","MAG","Comune",2,1,"INFORMATICA E DIRITTO","IUS/01",null,"D",6,48,0,0,48]
["DIPARTIMENTO DI INFORMATICA","SICUREZZA INFORMATICA (D.M. 270/04) - SEDE DI TARANTO","MAG","Comune",2,1,"TEORIA DELL'INFORMAZIONE","INF/01",null,"D",6,32,30,0,62]
["DIPARTIMENTO DI INFORMATICA","SICUREZZA INFORMATICA (D.M. 270/04) - SEDE DI TARANTO","MAG","Comune",2,1,"LOGICA APPLICATA","INF/01",null,"D",6,48,0,0,48]
["DIPARTIMENTO DI INFORMATICA","SICUREZZA INFORMATICA (D.M. 270/04) - SEDE DI TARANTO","MAG","Comune",2,1,"QUANTUM COMPUTING","INF/01",null,"D",6,32,15,25,47]
["DIPARTIMENTO DI INFORMATICA","DATA SCIENCE (D.M.270/04)","MAG","Comune",1,1,"TRATTAMENTO DEI DATI SENSIBILI ","IUS/01",null,"B",6,48,0,0,48]
["DIPARTIMENTO DI INFORMATICA","DATA SCIENCE (D.M.270/04)","MAG","Comune",1,1,"INGLESE PROFESSIONALE PER LA DATA SCIENCE","L-LIN/12",null,"F",3,24,0,0,24]
["DIPARTIMENTO DI INFORMATICA","DATA SCIENCE (D.M.270/04)","MAG","Comune",1,2,"MODELIZZAZIONE STATISTICA","SECS-S/01",null,"B",6,32,30,0,62]
["DIPARTIMENTO DI INFORMATICA","DATA SCIENCE (D.M.270/04)","MAG","Comune",2,1,"MODELLI ECONOMICI PER L'INNOVAZIONE GUIDATA DEI DATI","SECS-P/08",null,"B",6,48,0,0,48]
["DIPARTIMENTO DI INFORMATICA","DATA SCIENCE (D.M.270/04)","MAG","Comune",2,1,"LOGICA E INTELLIGENZA ARTIFICIALE","INF/01",null,"D",6,48,0,0,48]
["DIPARTIMENTO DI INFORMATICA","DATA SCIENCE (D.M.270/04)","MAG","Comune",2,1,"ETICA NELL'INNOVAZIONE TECNOLOGICA","M-FIL/03",null,"D",6,48,0,0,48]